bitfinex/quotes_SOLUSD_20250317
["timestamp","ask_amount","ask_price","bid_price","bid_amount"]
[1742211142341,23.34513433,129.38,129.36,0.063]
[1742211142543,23.34513433,129.38,129.36,6.823]
[1742211142719,43.34513433,129.38,129.36,6.823]
[1742211142920,23.34513433,129.37,129.36,6.823]
[1742211145744,31.07483433,129.37,129.36,6.823]
[1742211146145,31.07483433,129.37,129.36,0.063]
[1742211146720,23.34513433,129.37,129.36,0.063]
[1742211146920,31.07483433,129.37,129.36,0.063]
[1742211151340,34.95014116,129.37,129.36,0.063]
[1742211153126,42.67984116,129.37,129.36,0.063]
[1742211153953,27.7294,129.38,129.36,0.063]
[1742211154124,14.95014116,129.37,129.36,0.063]
[1742211154843,20.0,129.37,129.36,0.063]
[1742211155144,34.95014116,129.37,129.36,0.063]
[1742211155338,42.67984116,129.37,129.36,0.063]
[1742211155743,42.9641643,129.37,129.36,0.063]
[1742211156045,22.9641643,129.37,129.36,0.063]
[1742211158483,14.95014116,129.37,129.36,0.063]
[1742211158768,34.95014116,129.37,129.36,0.063]
[1742211159342,42.67984116,129.37,129.36,0.063]
[1742211162945,42.9641643,129.37,129.36,0.063]
[1742211163763,42.67984116,129.37,129.36,0.063]
[1742211163975,34.95014116,129.37,129.36,0.063]
[1742211164149,42.67984116,129.37,129.36,0.063]
[1742211166375,34.95014116,129.37,129.36,0.063]
[1742211169180,42.70984116,129.37,129.36,0.063]
[1742211170553,34.98014116,129.37,129.36,0.063]
[1742211172976,42.70984116,129.37,129.36,0.063]
[1742211175877,42.9941643,129.37,129.36,0.063]
[1742211176063,22.9941643,129.37,129.36,0.063]
[1742211179480,22.70984116,129.37,129.36,0.063]
[1742211179977,14.98014116,129.37,129.36,0.063]
[1742211181060,22.70984116,129.37,129.36,0.063]
[1742211181262,20.03,129.37,129.36,0.063]
[1742211183162,34.98014116,129.37,129.36,0.063]
[1742211184170,20.03,129.37,129.36,0.063]
[1742211184561,0.03,129.37,129.36,0.063]
[1742211184788,0.03,129.37,129.36,30.64564116]
[1742211184976,0.03,129.41,129.36,209.22145466]
[1742211185165,0.03,129.41,129.39,14.95014116]
[1742211185362,0.03,129.41,129.4,6.7]
[1742211186282,0.03,129.41,129.4,23.26964116]
[1742211186866,0.03,129.41,129.4,8.3195]
[1742211188867,0.03,129.41,129.4,30.99754116]
[1742211189373,0.03,129.41,129.4,23.26964116]
[1742211189582,0.03,129.41,129.4,16.0474]
[1742211189974,0.03,129.41,129.4,8.3195]
[1742211190166,0.03,129.41,129.4,16.0474]
[1742211190377,0.03,129.41,129.4,8.3195]
[1742211192274,0.03,129.41,129.4,6.7]
[1742211192675,0.03,129.41,129.37,1.6195]
[1742211192676,14.98014116,129.41,129.37,1.6195]
[1742211192993,22.67924116,129.38,129.36,13.0457]
[1742211193199,14.95014116,129.37,129.36,6.763]
[1742211193495,14.95014116,129.37,129.36,0.063]
[1742211194995,22.9641643,129.37,129.36,0.063]
[1742211197194,22.67984116,129.37,129.36,0.063]
[1742211198696,22.9641643,129.37,129.36,0.063]
[1742211199970,22.67984116,129.37,129.36,0.063]
[1742211200173,14.95014116,129.37,129.36,0.063]
[1742211200392,22.67954116,129.38,129.36,0.063]
[1742211203680,20.0,129.37,129.36,0.063]
[1742211204700,31.07554915,129.39,129.36,0.063]
[1742211204995,31.07514915,129.4,129.36,6.763]
[1742211205204,0.03,129.37,129.36,6.763]
[1742211206796,0.03,129.37,129.36,14.4933]
[1742211207375,0.03,129.37,129.36,37.84024915]
[1742211207602,0.03,129.37,129.36,143.69889801]
[1742211208722,0.03,129.37,129.36,143.98322115]
[1742211208887,0.03,129.37,129.36,167.3301703]
[1742211209199,0.03,129.41,129.37,18.64964886]
[1742211209499,0.03,129.41,129.39,23.34694915]
[1742211209686,0.03,129.41,129.4,6.7]
[1742211210096,0.03,129.41,129.4,112.45544915]
[1742211210611,0.03,129.41,129.4,438.41494915]
[1742211211800,0.03,129.41,129.4,430.68704915]
[1742211212002,0.03,129.41,129.4,407.3401]
[1742211212182,23.37694915,129.41,129.37,7.8227]
[1742211212387,23.37694915,129.41,129.38,6.7]
[1742211212789,31.10434915,129.41,129.38,6.7]
[1742211213909,23.37694915,129.41,129.39,6.7]
[1742211215783,0.03,129.41,129.39,6.7]
[1742211215993,0.03,129.41,129.39,37.77544915]
[1742211217915,0.03,129.41,129.39,14.4283]
[1742211218413,0.03,129.41,129.39,87.4997]
[1742211218619,0.03,129.41,129.39,95.2281]
[1742211220206,0.03,129.41,129.39,111.87504915]
[1742211220520,0.03,129.41,129.4,30.04694915]
[1742211220702,0.03,129.41,129.4,110.84664915]
[1742211221210,0.03,129.41,129.4,422.84664915]
[1742211221824,0.03,129.41,129.4,430.57454915]
[1742211224820,0.03,129.41,129.4,430.57454915]
[1742211227207,0.03,129.41,129.4,422.15653918]
[1742211228731,0.03,129.41,129.4,407.2276]
[1742211229129,0.03,129.41,129.4,422.15653918]
[1742211230932,0.03,129.41,129.4,110.15653918]
[1742211231135,0.03,129.41,129.4,102.42863918]
[1742211233831,0.03,129.41,129.4,414.42863918]
[1742211234029,0.03,129.41,129.4,87.4597]
[1742211234909,7.7573,129.41,129.4,87.4597]
[1742211236006,7.7573,129.41,129.4,80.7997]
[1742211236207,7.7573,129.41,129.4,87.4597]
[1742211236502,22.68623918,129.41,129.4,6.66]
[1742211236809,42.00463918,129.41,129.37,6.723]
[1742211237026,14.92893918,129.39,129.37,6.723]
[1742211237420,7.7291,129.38,129.37,6.723]
[1742211238135,7.7291,129.38,129.37,0.063]
[1742211238344,19.3484,129.41,129.37,6.723]
[1742211238634,7.7279,129.4,129.37,6.723]
[1742211238836,22.65683918,129.4,129.37,6.723]
[1742211239004,0.03,129.41,129.37,21.65193918]
[1742211240232,14.95893918,129.41,129.37,6.723]
[1742211243028,23.34007652,129.39,129.37,87.5227]
[1742211243519,7.7291,129.38,129.37,87.5227]
[1742211243942,31.06917652,129.38,129.37,0.063]
[1742211244780,31.35349966,129.38,129.37,0.063]
[1742211248534,50.00314852,129.38,129.37,0.063]
[1742211249845,73.34322504,129.38,129.37,0.063]
[1742211252141,50.00314852,129.38,129.37,0.063]
[1742211252841,73.34322504,129.38,129.37,0.0001]
[1742211257659,50.00314852,129.38,129.37,0.0001]
[1742211263148,22.96540738,129.38,129.37,0.0001]
[1742211264156,22.99540738,129.38,129.37,0.0001]
[1742211271239,22.71108424,129.38,129.37,0.0001]
[1742211273169,14.98198424,129.38,129.37,0.0001]
[1742211273343,22.71108424,129.38,129.37,0.0001]
[1742211278866,22.99540738,129.38,129.37,0.0001]
[1742211280556,22.49540738,129.38,129.37,0.0001]
[1742211281460,41.14505624,129.38,129.37,0.0001]
[1742211286479,22.49540738,129.38,129.37,0.0001]
[1742211287875,22.21108424,129.38,129.37,0.0001]
[1742211289567,22.49540738,129.38,129.37,0.0001]
[1742211292855,22.21108424,129.38,129.37,0.0001]
[1742211293061,14.98198424,129.38,129.37,0.0001]
[1742211294489,0.03,129.38,129.37,14.1492]
[1742211295063,0.03,129.38,129.37,21.8789]
[1742211295265,0.03,129.38,129.37,117.63058424]
[1742211295996,0.03,129.41,129.37,117.63058424]
[1742211296287,0.03,129.41,129.39,14.95198424]
[1742211296986,0.03,129.41,129.39,326.95198424]
[1742211297777,0.03,129.41,129.4,7.7279]
[1742211297978,0.03,129.41,129.4,88.5276]
[1742211298375,0.03,129.41,129.4,103.47958424]
[1742211298685,0.03,129.41,129.4,95.75168424]
[1742211299066,0.03,129.41,129.4,80.7997]
[1742211304494,0.03,129.41,129.4,411.44934886]
[1742211304693,0.03,129.41,129.4,426.4013331]
[1742211308277,0.03,129.41,129.4,392.7997]
[1742211308698,0.03,129.41,129.4,80.7997]
[1742211310212,7.7573,129.41,129.4,80.7997]
[1742211311484,22.70928424,129.41,129.4,80.7997]
[1742211313315,14.98198424,129.41,129.4,80.7997]
[1742211313510,0.03,129.41,129.4,80.7997]
[1742211313809,0.03,129.41,129.4,87.3997]
[1742211316483,0.03,129.41,129.4,399.3997]
[1742211319402,0.03,129.41,129.4,414.35168424]
[1742211319710,0.03,129.41,129.4,399.3997]
[1742211321703,0.03,129.41,129.4,87.3997]
[1742211324815,0.03,129.41,129.4,399.3997]
[1742211328319,7.7279,129.4,129.38,80.8627]
[1742211328505,14.95198424,129.39,129.38,80.8627]
[1742211329329,22.67988424,129.4,129.38,80.8627]
[1742211330603,22.67988424,129.4,129.38,87.4627]
[1742211332322,22.67988424,129.4,129.38,80.8627]
[1742211332511,22.67988424,129.4,129.38,87.4627]
[1742211332712,14.95198424,129.39,129.38,6.663]
[1742211333424,14.98198424,129.41,129.38,6.663]
[1742211334705,0.03,129.41,129.38,14.3919]
[1742211335326,0.03,129.4,129.38,6.663]
[1742211335525,14.98198424,129.4,129.38,6.663]
[1742211335821,14.98198424,129.4,129.38,318.663]
[1742211336803,22.70998424,129.4,129.38,318.663]
[1742211337008,14.98198424,129.4,129.38,318.663]
[1742211338442,22.71018424,129.4,129.38,318.663]
[1742211339641,14.95198424,129.39,129.38,0.063]
[1742211340232,15.23630738,129.39,129.38,0.063]
[1742211341642,22.96480738,129.39,129.38,0.063]
[1742211343043,18.933972,129.38,129.36,0.063]
[1742211343221,20.0,129.36,129.35,0.063]
[1742211343544,34.95198424,129.36,129.35,0.063]
[1742211343732,8.01522314,129.35,129.34,0.063]
[1742211344039,22.96720738,129.35,129.33,0.063]
[1742211344210,14.95198424,129.34,129.33,0.063]
[1742211344835,20.0,129.31,129.29,0.063]
[1742211345144,14.95198424,129.3,129.29,0.063]
[1742211346525,34.95198424,129.31,129.29,0.063]
[1742211349926,14.95198424,129.3,129.29,0.063]
[1742211350750,34.95198424,129.31,129.29,0.063]
[1742211352824,14.95198424,129.3,129.29,0.063]
[1742211353825,22.68588424,129.3,129.29,0.063]
[1742211357244,82.77814434,129.3,129.29,0.063]
[1742211360339,22.97020738,129.3,129.29,0.063]
[1742211360849,14.95198424,129.3,129.29,0.063]
[1742211361935,0.03,129.34,129.29,6.663]
[1742211362458,14.95198424,129.3,129.29,6.663]
[1742211363250,22.68588424,129.3,129.29,6.663]
[1742211363742,22.68588424,129.3,129.29,0.063]
[1742211364150,14.95198424,129.3,129.29,0.063]
[1742211364896,22.68588424,129.3,129.29,0.063]
[1742211365245,37.92219162,129.3,129.29,0.063]
[1742211365456,82.77814434,129.3,129.29,0.063]
[1742211365858,22.97020738,129.3,129.29,0.063]
[1742211366162,22.68588424,129.3,129.29,0.063]
[1742211367447,14.95198424,129.3,129.29,0.063]
[1742211367652,14.95198424,129.31,129.29,0.063]
[1742211368249,14.95198424,129.32,129.29,0.063]
[1742211369368,14.95198424,129.32,129.3,6.6]
[1742211369571,14.95198424,129.31,129.3,6.6]
[1742211372268,0.03,129.34,129.3,6.6]
[1742211372470,14.98198424,129.34,129.3,15.9652]
[1742211373175,14.98198424,129.34,129.3,96.7649]
[1742211373752,0.03,129.34,129.3,96.7649]
[1742211373986,14.98198424,129.34,129.3,96.7649]
[1742211374880,14.95198424,129.33,129.3,96.7649]
[1742211376781,14.95198424,129.33,129.3,408.7649]
[1742211378082,14.95198424,129.32,129.3,87.3997]
[1742211378258,14.95198424,129.31,129.3,80.7997]
[1742211378658,14.95198424,129.31,129.29,6.663]
[1742211378659,0.03,129.34,129.29,6.663]
[1742211378962,0.03,129.34,129.31,16.60348424]
[1742211379364,0.03,129.34,129.32,14.95198424]
[1742211379583,0.03,129.34,129.33,21.57198424]
[1742211379769,0.03,129.34,129.33,27.71948424]
[1742211380674,0.03,129.34,129.33,12.7675]
[1742211380870,0.03,129.34,129.33,324.7675]
[1742211381586,0.03,129.34,129.33,332.4996]
[1742211381971,0.03,129.34,129.33,324.7675]
[1742211382285,0.03,129.34,129.33,332.4996]
[1742211382590,0.03,129.34,129.33,324.7675]
[1742211382761,0.03,129.34,129.33,318.62]
[1742211382960,14.98198424,129.34,129.33,6.62]
[1742211386090,14.98198424,129.34,129.32,80.7997]
[1742211386286,14.95198424,129.33,129.32,87.4197]
[1742211386470,14.98198424,129.34,129.32,87.4197]
[1742211387416,0.03,129.34,129.32,87.4197]
[1742211387560,0.03,129.34,129.32,95.1521]
[1742211388264,0.03,129.34,129.32,110.10408424]
[1742211388571,0.03,129.34,129.33,14.95198424]
[1742211389394,0.03,129.34,129.33,326.95198424]
[1742211389763,0.03,129.34,129.33,415.48378424]
[1742211391063,0.03,129.34,129.33,122.1334331]
[1742211391467,0.03,129.4,129.34,20.28474886]
[1742211391670,0.03,129.4,129.36,14.95198424]
[1742211391879,0.03,129.4,129.37,6.62]
[1742211393088,14.98198424,129.4,129.37,6.62]
[1742211393393,14.95198424,129.39,129.37,6.62]
[1742211393773,14.98198424,129.4,129.37,6.62]
[1742211393972,0.03,129.4,129.37,6.62]
[1742211394288,14.98198424,129.4,129.37,6.62]
[1742211394789,0.03,129.4,129.37,6.62]
[1742211394994,34.98198424,129.4,129.37,6.62]
[1742211397192,27.7584,129.4,129.37,6.62]
[1742211397393,20.03,129.4,129.37,6.62]
[1742211398298,20.03,129.4,129.37,14.3497]
[1742211398801,20.03,129.4,129.37,6.62]
[1742211399187,20.03,129.4,129.37,318.62]
[1742211400086,42.70998424,129.4,129.37,6.62]
[1742211402698,34.98198424,129.4,129.37,6.62]
[1742211402891,42.70998424,129.4,129.37,6.62]
[1742211404282,20.03,129.4,129.37,6.62]
[1742211404802,14.95198424,129.39,129.37,6.62]
[1742211405101,14.95198424,129.38,129.37,6.62]
[1742211406185,14.95198424,129.38,129.34,82.4348]
[1742211406378,48.83426157,129.4,129.35,6.62]
[1742211406588,7.7309,129.35,129.33,6.683]
[1742211406807,14.95198424,129.34,129.33,6.683]
[1742211407312,22.68288424,129.35,129.33,6.683]
[1742211407505,34.95198424,129.36,129.33,6.683]
[1742211407698,20.0,129.36,129.33,6.683]
[1742211408302,14.95198424,129.37,129.33,6.683]
[1742211408707,7.7303,129.36,129.33,6.683]
[1742211408909,22.68228424,129.36,129.33,6.683]
[1742211412107,14.95198424,129.36,129.33,6.683]
[1742211412300,42.68188424,129.37,129.33,14.415]
[1742211412500,34.95198424,129.37,129.33,14.415]
[1742211413105,14.95198424,129.37,129.33,14.415]
[1742211414985,14.95198424,129.37,129.33,326.415]
[1742211416292,22.68138424,129.38,129.33,326.415]
[1742211416496,14.95198424,129.37,129.33,407.2147]
[1742211417220,22.68168424,129.37,129.33,407.2147]
[1742211417422,42.68168424,129.37,129.33,399.4827]
[1742211418707,14.95198424,129.36,129.33,399.4827]
[1742211418916,14.95198424,129.35,129.33,87.4627]
[1742211419101,14.95198424,129.35,129.33,6.663]
[1742211419409,7.7315,129.34,129.33,6.663]
[1742211419993,22.68318424,129.35,129.33,6.663]
[1742211420505,14.95198424,129.35,129.33,6.663]
[1742211420710,14.95198424,129.36,129.33,6.663]
[1742211421210,42.68198424,129.37,129.33,14.3951]
[1742211421907,22.68128424,129.38,129.33,326.3951]
[1742211422213,14.95198424,129.38,129.33,326.3951]
[1742211422413,14.95198424,129.38,129.33,422.14678424]
[1742211422597,14.95198424,129.39,129.34,21.28358424]
[1742211422996,14.98198424,129.4,129.35,16.53378424]
[1742211423194,22.70998424,129.4,129.35,1.5818]
[1742211423418,14.95198424,129.39,129.35,1.5818]
[1742211423806,14.95198424,129.39,129.35,9.3124]
[1742211424511,22.68058424,129.39,129.35,1.5818]
[1742211424810,14.95198424,129.38,129.35,1.5818]
[1742211427099,22.68128424,129.38,129.35,1.5818]
[1742211427914,14.95198424,129.38,129.35,1.5818]
[1742211428912,14.95198424,129.38,129.35,9.3127]
[1742211429401,7.7582,129.4,129.35,9.3127]
[1742211429596,14.95198424,129.39,129.35,9.3127]
[1742211430298,14.95198424,129.38,129.35,1.5818]
[1742211432614,22.68118424,129.38,129.35,313.5818]
[1742211432914,14.95198424,129.38,129.35,1.5818]
[1742211433302,14.95198424,129.39,129.35,9.3126]
[1742211434223,14.98198424,129.4,129.35,24.26458424]
[1742211434604,0.03,129.4,129.35,24.26458424]
[1742211434824,14.98198424,129.4,129.35,24.26458424]
[1742211435521,14.95198424,129.38,129.35,1.5818]
[1742211436209,14.95198424,129.36,129.34,87.1313]
[1742211436412,14.95198424,129.36,129.35,6.6]
[1742211437417,14.95198424,129.36,129.34,87.1313]
[1742211437718,14.95198424,129.36,129.35,6.6]
[1742211438225,14.95198424,129.37,129.35,6.6]
[1742211438935,14.95198424,129.38,129.36,7.7303]
[1742211440725,14.98198424,129.4,129.36,7.7303]
[1742211443416,0.03,129.38,129.37,1.5978]
[1742211443623,0.03,129.38,129.37,9.3275]
[1742211445124,0.03,129.38,129.37,321.3275]
[1742211445313,0.03,129.38,129.37,313.5978]
[1742211445520,14.98198424,129.38,129.35,95.1305]
[1742211446329,0.03,129.38,129.35,95.1305]
[1742211446725,0.03,129.38,129.35,110.08248424]
[1742211448636,0.03,129.38,129.35,422.08248424]
[1742211450815,0.03,129.38,129.37,14.95198424]
[1742211451010,0.03,129.38,129.37,41.7794331]
[1742211451415,0.03,129.38,129.37,122.5791331]
[1742211452434,0.0001,129.38,129.37,130.3088331]
[1742211453337,0.0001,129.38,129.37,130.59315624]
[1742211453519,0.03,129.4,129.39,14.95198424]
[1742211453842,0.03,129.4,129.39,414.35168424]
[1742211454336,0.03,129.4,129.39,422.08018424]
[1742211454736,0.03,129.4,129.39,414.35168424]
[1742211454921,0.03,129.4,129.39,399.3997]
[1742211458231,0.03,129.4,129.39,407.1282]
[1742211461649,0.03,129.4,129.39,95.1282]
[1742211461947,0.03,129.4,129.39,87.3997]
[1742211463552,14.98198424,129.4,129.37,82.3279]
[1742211463845,14.98198424,129.4,129.38,6.6]
[1742211464243,0.03,129.4,129.38,6.6]
[1742211465344,0.03,129.4,129.38,29.28108424]
[1742211467647,0.03,129.4,129.38,110.08078424]
[1742211467849,0.03,129.4,129.39,16.50638424]
[1742211468644,0.03,129.4,129.39,105.03458424]
[1742211470739,0.03,129.4,129.39,417.03458424]
[1742211472333,0.03,129.4,129.39,88.5282]
[1742211472746,0.03,129.4,129.39,103.48018424]
[1742211473959,0.03,129.4,129.39,88.5282]
[1742211475358,0.03,129.4,129.39,400.5282]
[1742211475754,0.03,129.4,129.39,415.48018424]
[1742211476454,0.03,129.4,129.39,434.1298331]
[1742211480840,0.03,129.4,129.39,415.48018424]
[1742211483576,0.03,129.4,129.39,434.1298331]
[1742211483747,0.03,129.4,129.39,122.41415624]
[1742211483748,0.0001,129.4,129.39,122.41415624]
[1742211483953,0.0001,129.4,129.39,123.57275231]
[1742211485265,0.0001,129.41,129.4,1.79012314]
[1742211485455,0.0001,129.41,129.4,16.74210738]
[1742211486066,0.0001,129.41,129.4,189.09145624]
[1742211486364,0.0001,129.41,129.4,195.18035624]
[1742211486743,0.0001,129.41,129.4,507.18035624]
[1742211486949,0.0001,129.41,129.4,522.13234048]
[1742211487247,0.03,129.46,129.45,41.3265331]
[1742211487452,0.03,129.46,129.45,128.7262331]
[1742211487651,0.03,129.49,129.45,135.08375624]
[1742211487846,0.03,129.49,129.48,14.95198424]
[1742211488167,0.03,129.49,129.48,95.75168424]
[1742211488741,0.03,129.49,129.48,114.4013331]
[1742211489148,0.03,129.49,129.48,122.1245331]
[1742211490350,0.03,129.49,129.48,434.1245331]
[1742211490956,0.03,129.49,129.48,122.1245331]
[1742211491769,0.03,129.49,129.48,95.75168424]
[1742211491950,0.03,129.49,129.48,103.47488424]
[1742211492152,0.03,129.49,129.48,122.1245331]
[1742211492771,0.03,129.49,129.48,122.40885624]
[1742211493071,0.03,129.49,129.48,183.37463575]
[1742211493275,0.03,129.49,129.48,182.2167932]
[1742211493860,0.03,129.49,129.48,494.2167932]
[1742211494168,0.03,129.49,129.48,479.26480896]
[1742211494376,0.03,129.49,129.48,434.40885624]
[1742211498565,0.03,129.49,129.48,568.6491932]
[1742211498962,0.03,129.5,129.49,18.933972]
[1742211499169,0.03,129.5,129.49,41.64365195]
[1742211500005,0.03,129.5,129.49,40.48595624]
[1742211500155,0.03,129.5,129.49,47.9242331]
[1742211500358,0.03,129.5,129.49,128.7239331]
[1742211500977,0.03,129.5,129.49,129.00825624]
[1742211501681,0.03,129.5,129.49,130.16601626]
[1742211502082,0.03,129.5,129.49,442.16601626]
[1742211502280,0.03,129.5,129.49,441.00825624]
[1742211506681,0.0001,129.5,129.49,441.00825624]
[1742211506880,0.0001,129.5,129.49,447.86955624]
[1742211507076,0.0001,129.51,129.49,447.86955624]
[1742211507384,0.0001,129.53,129.52,18.933972]
[1742211507565,0.0001,129.53,129.52,190.26645681]
[1742211507764,0.0001,129.53,129.52,189.10905624]
[1742211508167,0.0001,129.53,129.52,180.07004886]
[1742211510097,0.0001,129.53,129.52,153.6996]
[1742211510283,0.0001,129.53,129.52,392.7996]
[1742211511091,0.0001,129.53,129.52,80.7996]
[1742211511394,14.95208424,129.53,129.52,80.7996]
[1742211511688,14.95208424,129.53,129.52,6.6]
[1742211512276,22.67278424,129.53,129.51,6.6]
[1742211512477,14.95198424,129.52,129.51,6.6]
[1742211514298,22.67278424,129.52,129.51,6.6]
[1742211517692,0.0001,129.53,129.51,6.6]
[1742211518397,0.0001,129.53,129.51,14.3213]
[1742211518710,0.0001,129.53,129.52,35.54377268]
[1742211518879,0.0001,129.53,129.52,43.26457268]
[1742211519077,0.0001,129.53,129.52,42.76457268]
[1742211520204,0.0001,129.53,129.52,335.83060068]
[1742211520518,0.0001,129.53,129.52,353.3224331]
[1742211522916,0.0001,129.53,129.52,353.60675624]
[1742211523506,0.0001,129.53,129.52,434.40635624]
[1742211523879,0.0001,129.54,129.52,434.26419467]
[1742211524119,0.0001,129.54,129.53,14.95198424]
[1742211524305,0.0001,129.54,129.53,16.10943098]
[1742211524489,0.0001,129.54,129.53,35.04340298]
[1742211525891,0.0001,129.54,129.53,48.20615624]
[1742211527110,0.0001,129.54,129.53,360.20615624]
[1742211527493,0.0001,129.54,129.53,359.9218331]
[1742211527689,0.0001,129.54,129.53,353.3218331]
[1742211527896,0.0001,129.54,129.53,359.9218331]
[1742211529197,0.0001,129.54,129.53,440.7214331]
[1742211529705,0.0001,129.54,129.53,407.1198]
[1742211529909,0.0001,129.54,129.53,399.3996]
[1742211530107,0.0001,129.54,129.53,407.1198]
[1742211530409,0.0001,129.54,129.53,422.07178424]
[1742211530607,0.0001,129.54,129.53,440.7214331]
[1742211532718,0.0001,129.54,129.53,425.76944886]
[1742211532903,0.0001,129.54,129.53,441.00575624]
[1742211534416,0.0001,129.54,129.53,443.16985624]
[1742211535219,0.0001,129.54,129.53,442.66985624]
[1742211535410,0.0001,129.54,129.53,442.3855331]
[1742211536502,0.0001,129.54,129.53,442.4485331]
[1742211538113,0.0001,129.54,129.53,442.73285624]
[1742211538306,0.0001,129.54,129.53,442.4485331]
[1742211538698,0.0001,129.54,129.53,442.73285624]
[1742211539202,0.0001,129.54,129.53,442.4485331]
[1742211540600,0.0001,129.54,129.53,440.7844331]
[1742211540930,0.0001,129.54,129.53,95.1828]
[1742211541418,0.0001,129.54,129.53,80.8626]
[1742211541620,0.0001,129.54,129.53,87.4626]
[1742211541818,0.0001,129.54,129.53,80.8626]
[1742211542007,0.0001,129.54,129.53,87.4626]
[1742211542893,0.0001,129.54,129.53,95.1828]
[1742211543302,0.0001,129.54,129.53,128.7844331]
[1742211543700,14.54218424,129.59,129.53,128.7844331]
[1742211543999,14.54218424,129.59,129.54,312.0]
[1742211544200,14.95198424,129.6,129.54,326.95198424]
[1742211544716,22.66608424,129.61,129.56,14.95198424]
[1742211544923,14.95198424,129.6,129.57,14.3175]
[1742211546633,16.51898424,129.61,129.57,14.3175]
[1742211547825,16.51898424,129.61,129.57,326.3175]
[1742211549701,16.10407194,129.62,129.57,422.06908424]
[1742211550035,1.1520877,129.62,129.57,422.06908424]
[1742211550222,16.10407194,129.62,129.57,422.06908424]
[1742211551126,14.95198424,129.61,129.57,407.1171]
[1742211552908,1.1520877,129.62,129.57,422.06908424]
[1742211552909,16.10407194,129.62,129.57,422.06908424]
[1742211553111,1.1520877,129.62,129.58,33.6016331]
[1742211553934,16.10407194,129.62,129.58,18.64964886]
[1742211554326,16.10407194,129.62,129.57,110.06908424]
[1742211554634,23.81887194,129.62,129.57,110.06908424]
[1742211554928,1.1520877,129.62,129.58,33.6016331]
[1742211556232,1.1520877,129.62,129.59,7.7166]
[1742211556435,1.1520877,129.62,129.59,319.7166]
[1742211556728,16.10407194,129.62,129.59,312.0]
[1742211556937,14.95198424,129.61,129.57,95.75158424]
[1742211557117,14.95198424,129.6,129.57,80.7996]
[1742211557312,14.95198424,129.6,129.58,6.6]
[1742211558930,14.95198424,129.6,129.57,80.7996]
[1742211559117,14.95198424,129.6,129.58,6.6]
[1742211560123,22.66808424,129.6,129.58,318.6]
[1742211560621,14.95198424,129.59,129.57,80.7996]
[1742211560827,14.95198424,129.6,129.58,6.6]
[1742211563914,22.66768424,129.61,129.58,6.6]
[1742211564334,14.95198424,129.61,129.58,6.6]
[1742211566010,14.95198424,129.6,129.58,6.6]
[1742211566722,8.8669877,129.62,129.58,6.6]
[1742211567034,14.95198424,129.61,129.58,6.6]
[1742211567552,8.8669877,129.62,129.58,14.317]
[1742211567740,14.95198424,129.6,129.58,6.6]
[1742211567920,14.95198424,129.61,129.58,14.3171]
[1742211568616,1.1520877,129.62,129.58,14.3171]
[1742211568816,14.95198424,129.61,129.58,14.3171]
[1742211569841,14.95198424,129.61,129.58,95.1167]
[1742211570032,16.10407194,129.62,129.58,95.1167]
[1742211570429,14.95198424,129.61,129.58,95.1167]
[1742211570624,14.95198424,129.6,129.58,87.3996]
[1742211571030,8.8670877,129.62,129.58,95.1167]
[1742211571031,14.95198424,129.61,129.58,95.1167]
[1742211571338,8.8670877,129.62,129.59,18.64964886]
[1742211571339,1.1520877,129.62,129.59,18.64964886]
[1742211571936,1.1520877,129.62,129.6,312.0]
[1742211573145,1.1520877,129.62,129.6,319.7159]
[1742211573641,1.1520877,129.62,129.6,312.0]